Cogmind - Beta 13 @@@ ROGUE MODE // 2024.04.07 @ 21:54:46 Player: Eusmilis Result: Destroyed by G-34 Mercenary with Small Laser Performance ------------- Evolutions (0) 0 Regions Visited (3) 600 Robots Destroyed (19) 95 Value Destroyed (548) 548 Prototype IDs (1) 20 Alien Tech Used (0) 0 Bonus (300) 300 TOTAL SCORE: 1563 Bonus ------- Aligned with FarCom 300 Cogmind --------- Core Integrity 0/250 Matter 290/300 Energy 123/150 System Corruption 3% Temperature Cool (6) Movement Walking (260) Ox2 Location -10/Exiles Parts ------- > --- POWER (1) -------- Micro Nuclear Core > --- PROPULSION (2) --- Aluminum Leg > --- UTILITY (2) ------ Large Storage Unit > --- WEAPON (2) ------- Mining Laser > --- INVENTORY (15) --- Ion Engine Aluminum Leg Aluminum Leg Aluminum Leg Aluminum Leg Small Matter Pod (50) Structural Scanner Signal Interpreter Tractor Beam Peak State ------------ > --- POWER ------------ Ion Engine > --- PROPULSION ------- Carbon-fiber Leg Carbon-fiber Leg > --- UTILITY ---------- Large Storage Unit Trap Reconfigurator > --- WEAPON ----------- Small Laser > --- INVENTORY -------- Ion Engine Aluminum Leg Aluminum Leg Aluminum Leg Aluminum Leg Aluminum Leg Aluminum Leg Small Matter Pod Structural Scanner Signal Interpreter Tractor Beam Mining Laser Welding Torch [Rating: 19] Favorites ----------- Power Ion Engine Engine Ion Engine Power Core Light Nuclear Core Propulsion Aluminum Leg Leg Aluminum Leg Utility Large Storage Unit Device Improved Terrain Scanner Storage Large Storage Unit Weapon Light Assault Rifle Energy Gun EM Pulse Gun Ballistic Gun Light Assault Rifle Special Weapon Mining Laser Build | -11 -10 -10 -10 ------- Run | Yrd Mat Min Exi Slots Evolved . | . . . . Power . | . . . . Propulsion . | . . . . Utility . | . . . . Weapon . | . . . . Parts Attached 24 | 7 6 . 11 Power 5 | 1 1 . 3 Engine 3 | 1 1 . 1 Core 2 | . . . 2 Reactor . | . . . . Propulsion 9 | 2 3 . 4 Treads . | . . . . Leg 9 | 2 3 . 4 Wheel . | . . . . Hover . | . . . . Flight . | . . . . Utility 4 | 2 1 . 1 Device 2 | 1 . . 1 Storage 2 | 1 1 . . Processor . | . . . . Hackware . | . . . . Protection . | . . . . Artifact . | . . . . Weapon 6 | 2 1 . 3 Energy Gun 2 | . 1 . 1 Energy Cannon . | . . . . Ballistic Gun 2 | 2 . . . Ballistic Cannon . | . . . . Launcher . | . . . . Special Weapon 2 | . . . 2 Impact Weapon . | . . . . Slashing Weapon . | . . . . Piercing Weapon . | . . . . Special Melee Weapon . | . . . . Unidentified Prototypes 1 | . . . 1 Parts Lost 13 | . 2 . 11 Power 3 | . 1 . 2 Propulsion 3 | . . . 3 Utility 2 | . . . 2 Weapon 5 | . 1 . 4 Highest Loss Streak 8 | . 2 . 8 To Critical Strikes . | . . . . Average Slot Usage (%) 96 | . 98 100 92 Engine 13 | . 12 14 12 Leg 27 | . 28 28 27 Device 13 | . 14 14 13 Storage 14 | . 14 14 14 Energy Gun 9 | . 4 14 12 Ballistic Gun 15 | . 23 14 8 Naked Turns . | . . . . Heaviest Build 29 | 11 29 29 29 Greatest Support 30 | 20 20 20 30 Greatest Overweight (x) 2 | 2 1 1 2 Average Overweight (x) . | . . 1 . Largest Inventory Capacity 15 | 8 15 15 15 Average Capacity 13 | 7 13 15 15 Most Carried 14 | 5 12 13 14 Average Carried 10 | 2 8 12 13 Final Capacity 15 | 8 15 15 15 Final Carried 13 | 4 12 13 9 Class Distribution -------------------- 51% | Scavenger-Mutant 48% | Mutant Dominant Class ---------------- Mutant | -10/Materials Scavenger-Mutant | -10/Mines Scavenger-Mutant | -10/Exiles Resources | -11 -10 -10 -10 ----------- Run | Yrd Mat Min Exi Matter Collected 551 | 306 106 13 126 Remotely . | . . . . Salvage Created 764 | 156 298 49 261 Parts 38 | 8 14 4 12 Haulers Intercepted . | . . . . Recyclers Shooed . | . . . . Parts Field Recycled . | . . . . Retrieved Matter . | . . . . Parts Self-Destructed . | . . . . Prevented . | . . . . Kills | -11 -10 -10 -10 ------- Run | Yrd Mat Min Exi Combat Hostiles Destroyed 15 | . 7 3 5 Guns 15 | . 7 3 5 Classes Destroyed 7 | 2 1 1 3 Tunneler 3 | 3 . . . Recycler 1 | 1 . . . Swarmer 3 | . . 3 . Grunt 8 | . 7 . 1 Brawler 1 | . . . 1 Hunter 2 | . . . 2 Programmer 1 | . . . 1 Best Kill Streak 3 | 2 2 3 2 Combat Bots Only 3 | . 2 3 2 Max Kills in Single Turn 1 | 1 1 1 1 Gunslinging . | . . . . Exploded . | . . . . Melee . | . . . . Uniques/NPCs Destroyed . | . . . . Combat | -11 -10 -10 -10 -------- Run | Yrd Mat Min Exi Hostile Shots Fired 158 | . 52 5 101 Missed 56 | . 16 2 38 Damage Taken 1486 | . 432 25 1029 Core 256 | . 72 . 184 Absorbed by Shields . | . . . . Core Remaining (%) 100 | 100 . . . Volleys Fired 98 | 18 33 3 44 Largest 2 | 2 2 2 2 Hottest 60 | 40 60 60 60 Shots Fired 153 | 36 66 6 45 Gun 153 | 36 66 6 45 Cannon . | . . . . Launcher . | . . . . Special . | . . . . Kinetic 104 | 36 64 3 1 Thermal 43 | . . . 43 Explosive . | . . . . Electromagnetic 6 | . 2 3 1 Robot Hit Streak 19 | 6 15 19 7 Robot Miss Streak 5 | 4 3 . 5 Penetration Max . | . . . . Secondary Targets 1 | . 1 . . Max Gunslinging Chain 1 | . 1 . . Shots Hit Robots 99 | 19 47 4 29 Core Hits 41 | 9 17 3 12 Critical Kills . | . . . . Critical Parts Destroyed . | . . . . Critical Strikes . | . . . . Melee Attacks . | . . . . Impact . | . . . . Slashing . | . . . . Piercing . | . . . . Sneak Attacks . | . . . . Combat Hostiles . | . . . . Follow-up Attacks . | . . . . Damage Inflicted 966 | 161 400 55 350 Guns 962 | 161 396 55 350 Cannons . | . . . . Explosions . | . . . . Melee . | . . . . Ramming 4 | . 4 . . Kinetic 556 | 161 371 24 . Thermal 350 | . . . 350 Explosive . | . . . . Electromagnetic 56 | . 25 31 . Impact . | . . . . Slashing . | . . . . Piercing . | . . . . Highest Corruption 3 | . . . 3 Average Corruption 2 | . . . 2 Corruption Purged . | . . . . Corruption Blocked . | . . . . Effects 1 | . . . 1 Energy Discharges 1 | . . . 1 Overload Shots . | . . . . Overflow Damage . | . . . . Projectiles . | . . . . Explosions . | . . . . Melee . | . . . . Knockbacks . | . . . . Impact . | . . . . Kinetic . | . . . . Secondary . | . . . . Self-Inflicted Damage . | . . . . Shots . | . . . . Rammed . | . . . . Targets Rammed 1 | . 1 . . Kicked 1 | . 1 . . Crushed . | . . . . Highest Temperature 24 | . 18 20 24 Average Temperature 13 | . 8 15 17 Received Heat Transfer 279 | . 243 . 36 Siege Activations . | . . . . Robots Corrupted . | . . . . Combat Hostiles . | . . . . Parts Fried . | . . . . Impact Corruptions . | . . . . Robots Melted . | . . . . Combat Hostiles . | . . . . Parts Melted . | . . . . Heat Transferred 750 | . . . 750 Parts Sabotaged . | . . . . Parts Stolen . | . . . . Parts Stripped . | . . . . Power Chain Reactions . | . . . . Alert | -11 -10 -10 -10 ------- Run | Yrd Mat Min Exi Peak Influence 109 | 20 103 109 . Initial 39 | . 13 39 . Average 54 | 6 61 60 . Maximum Alert Level . | . . . . Low Security (%) 100 | 100 100 100 . Level 1 . | . . . . Level 2 . | . . . . Level 3 . | . . . . Level 4 . | . . . . Level 5 . | . . . . High Security . | . . . . Max Security . | . . . . Squads Dispatched 1 | . 1 . . Investigation . | . . . . Extermination . | . . . . Reinforcement 1 | . 1 . . Assault . | . . . . Garrison . | . . . . Intercept . | . . . . Searches Triggered . | . . . . Construction Impeded . | . . . . Haulers Reinforced . | . . . . Active Scanning Responses . | . . . . Cargo Convoy Interrupts . | . . . . Stealth | -11 -10 -10 -10 --------- Run | Yrd Mat Min Exi Distress Signals . | . . . . Communications Jammed . | . . . . Distress Signals . | . . . . Times Spotted 27 | . 10 3 14 Peak Tracking Total 7 | . 4 2 7 Tactical Retreats 1 | . 1 . . Traps | -11 -10 -10 -10 ------- Run | Yrd Mat Min Exi Traps Triggered . | . . . . Indirectly . | . . . . Trap Hack Attempts . | . . . . Triggered . | . . . . Disarmed . | . . . . Reprogrammed . | . . . . Reused . | . . . . Traps Extracted . | . . . . Installed . | . . . . Triggered . | . . . . Machines | -11 -10 -10 -10 ---------- Run | Yrd Mat Min Exi Machines Disabled 1 | . . . 1 Max in Single Turn 1 | . . . 1 Machines Repaired . | . . . . Machines Dismantled . | . . . . Machines Sabotaged . | . . . . Overloaded Fab Kills . | . . . . Hacking | -11 -10 -10 -10 --------- Run | Yrd Mat Min Exi Machines Accessed 5 | . 5 . . Terminals 5 | . 5 . . Fabricators . | . . . . Repair Stations . | . . . . Recycling Units . | . . . . Scanalyzers . | . . . . Garrison Access . | . . . . Total Hacks 7 | . 7 . . Successful 5 | . 5 . . Failed 2 | . 2 . . Catastrophic . | . . . . Database Lockouts . | . . . . Manual 1 | . . . 1 Terminals 7 | . 7 . . Fabricators . | . . . . Repair Stations . | . . . . Recycling Units . | . . . . Scanalyzers . | . . . . Garrison Access . | . . . . Terminal Hacks 5 | . 5 . . Level Access Points 1 | . 1 . . Emergency Access Points 1 | . 1 . . Zone Layout 3 | . 3 . . Fabricator Hacks . | . . . . Repair Station Hacks . | . . . . Recycling Unit Hacks . | . . . . Scanalyzer . | . . . . Garrison Access Hacks . | . . . . Unauthorized Hacks . | . . . . Terminals . | . . . . Fabricators . | . . . . Repair Stations . | . . . . Recycling Units . | . . . . Scanalyzers . | . . . . Garrison Access . | . . . . Data Cores Recovered . | . . . . Used . | . . . . Hacking Detections 4 | . 4 . . Full Trace Events . | . . . . Feedback Events . | . . . . Feedback Blocked . | . . . . Robot Schematics Acquired . | . . . . Robots Built . | . . . . Authchips . | . . . . Time . | . . . . Total Robot Build Rating . | . . . . Part Schematics Acquired . | . . . . Parts Built . | . . . . Authchips . | . . . . Time . | . . . . Total Part Build Rating . | . . . . Parts Repaired . | . . . . Time . | . . . . Parts Recycled . | . . . . Recycled Matter . | . . . . Retrieved Matter . | . . . . Retrieved Components . | . . . . Parts Scanalyzed . | . . . . Part Schematics Acquired . | . . . . Parts Damaged . | . . . . Bothacking | -11 -10 -10 -10 ------------ Run | Yrd Mat Min Exi Used RIF Installer . | . . . . Robots Hacked . | . . . . Non-combat . | . . . . Combat . | . . . . Robot Hacks Applied . | . . . . Relay Couplers Released . | . . . . Fabnet Peak Effective % . | . . . . Robots Rewired . | . . . . Allies Hacked . | . . . . Hacks Repelled . | . . . . Allies | -11 -10 -10 -10 -------- Run | Yrd Mat Min Exi Total Allies . | . . . . Largest Group . | . . . . Highest-Rated Group . | . . . . Highest-Rated Ally . | . . . . Total Orders . | . . . . Ally Attacks . | . . . . Total Damage . | . . . . Kills . | . . . . Allies Corrupted . | . . . . Allies Melted . | . . . . Intel | -11 -10 -10 -10 ------- Run | Yrd Mat Min Exi Robot Analysis Total . | . . . . Derelict Logs Recovered . | . . . . Drone Launches . | . . . . Drone Recoveries . | . . . . Exploration | -11 -10 -10 -10 ------------- Run | Yrd Mat Min Exi Turns Passed 1739 | 149 673 290 627 Spaces Moved 831 | 74 329 146 282 Core 8 | 8 . . . Treads . | . . . . Legs 823 | 66 329 146 282 Wheels . | . . . . Hover . | . . . . Flight . | . . . . Fastest Speed 50 | 50 120 190 120 Average Speed 171 | 117 166 190 181 Slowest Speed 260 | 150 190 190 260 Overloaded Moves . | . . . . Propulsion Burnouts . | . . . . Robots Hopped . | . . . . Cave-ins Triggered . | . . . . Exploration Rate (%) 36 | 6 49 49 43 Regions Visited 3 Branch Regions 2 Pre-discovered Areas . | . . . . Known Exits Taken . | . . . . Unknown Exits Taken 3 | 1 1 1 . Scrap Searched 1 | . . 1 . Spaces Dug . | . . . . Terrain Destroyed . | . . . . Melee . | . . . . Projectile . | . . . . AOE . | . . . . Terrain Rammed . | . . . . Walls Destroyed . | . . . . Machines Disabled . | . . . . Actions | -11 -10 -10 -10 --------- Run | Yrd Mat Min Exi Total 1010 | 104 401 154 351 Wait 36 | . 20 5 11 Move 828 | 73 328 145 282 Hop . | . . . . Pick Up 17 | 5 9 1 2 Fast Attach 9 | 7 1 . 1 Attach 8 | . 1 . 7 Detach . | . . . . Swap 7 | . 4 . 3 Drop 6 | 1 4 . 1 Fire 98 | 18 33 3 44 Melee . | . . . . Ram . | . . . . Kick 1 | . 1 . . Crush . | . . . . Escape Stasis . | . . . . Rewire . | . . . . Trap . | . . . . Miscellaneous . | . . . . Route ------- -11/Scrapyard -10/Materials (discovered 5 exits: Mat x3 / [*Min x2]) -10/Mines (discovered 2 exits: *Mat / *Exi) -10/Exiles (discovered 1 exit: [*Min]) History --------- Turn | Location | Event 7 | -11/Scrapyard | Discovered new exit (range 16) 150 | -11/Scrapyard | Entered Materials 320 | -10/Materials | Build established: Mutant 489 | -10/Materials | Discovered new exit (range 15) 722 | -10/Materials | Identified exit to Materials 766 | -10/Materials | Discovered new exit (range 5) 823 | -10/Materials | Entered Mines 941 | -10/Mines | Discovered exit to Materials (range 6) 962 | -10/Mines | Build established: Scavenger-Mutant 1104 | -10/Mines | Deemed a non-threat by the Exiles lab entrance 1106 | -10/Mines | Discovered new exit (range 5) 1113 | -10/Mines | Entered Exiles 1144 | -10/Exiles | Discovered new exit (range 15) 1169 | -10/Exiles | Met 8R-AWN 1203 | -10/Exiles | Met EX-HEX 1252 | -10/Exiles | Met EX-BIN 1277 | -10/Exiles | Aligned with FarCom system 1279 | -10/Exiles | Given EX-Vault access code 1324 | -10/Exiles | Opened EX-Vault 1338 | -10/Exiles | Found Prototype Device 1379 | -10/Exiles | Warned to stay clear of 0b10 Research branches 1402 | -10/Exiles | Exiles lab attacked by MAIN.C 1514 | -10/Exiles | Lost 6 allies 1554 | -10/Exiles | Identified Trap Reconfigurator 1573 | -10/Exiles | Lost 3 parts (1u2w) 1666 | -10/Exiles | Core integrity fell below 50% 1737 | -10/Exiles | Core integrity fell below 20% 1740 | -10/Exiles | Destroyed by G-34 Mercenary with Small Laser Last Messages --------------- System corrupted: Energy discharge (-21). H-55 Commando destroyed. Carbon-fiber Leg destroyed. P-60 Hacker destroyed. FarCom Aligner disabled. Trap Reconfigurator destroyed. Sml. Laser destroyed. Acquired 40 matter. Slug penetrates P-60 Hacker. P-60 Hacker destroyed. Penetrated by Slug. Slug penetrates Wall. Penetrated by Slug. Lgt. Nuclear Core destroyed. Penetrated by Slug. Aluminum Leg destroyed. Penetrated by Slug. Welding Torch destroyed. Acquired Mic. Nuclear Core. Machine disabled. Map ----- +----------------------------------------------------+ | ?????????#?#????#???# ## """#??????????????? | | ??????????????####?## ##""""""#??#???????????? | | ??????#??????""""""?# #########??????????????? | | ?????????????"""" ## #??###???????#?????????? | | ????????????#""X" #???#??????????????????? | | ????????????#" ##???#?????????????????? | | ????????????#" ## ##?????????????????????? | | ???????????##""""""?# #?##########???????????? | | ???????????###"###??# #?#"""""""#?#??????????? | | ??????????????"?#???# ###"""""""#????????????? | | ???????#?????? ?????# #?#"""""""#????????????? | | ???????????????????## ### " """"#????????????? | | ?????????????????#?#" """"#????????????? | | ???????????????????#" """#????????????? | | ??????????????????##" """#????????????? | | ?????????????#?#???#" """#????????????? | | ???????????????????#" """#????????????? | | ???????????#????#??# """##???????????? | | ???????????????????## """""???????????? | | ????????????????????# """##?#?????????? | | ????????????#??#????#" * =% """""???????????? | | ???????? ??????#????#" % """ # "??????????? | | ?????????????????#??#" """""""""#????????????? | | ???????????????????## ########### "????#?????? | | ????????????????#?##"" ! #???????#??#??????#????? | | ??????????????#####"" [%@#??#????????????#?#????? | | ??????????????""""""" ! ##??????????#??????????? | | ?????????????""" " "" * ##?#?###########??????? | | ???????????" """ =[%= #####"""""""""##?????? | | ?????????? " " gh!%! " """ """"##????? | | ???????? [ | h "" " #????? | | ???????? !%! " """#????? | | ???????? = % * % g " "#????? | | ????????? [%! *% h " "##???? | | ????????? = h%= ""####? | | ????????? """""" h """#?? | | ?????????? % ######""" "#?# | | ?????????? ""#?????#####""" ##? | | ??????????? """#??#??#????##""" # | | ???????????????????#???????#"""" | | ????????????????????#??????#"" | | ?????????????????????#????#"""" | | ?????????????????????????"" | | ????????????????????????" | | ???????????????????????? | | ??????????????????????? % | | ?????????????????????? " # | | ?????????????????????? "" """ ## | | ?????????????????????? ##""" " " ""#" ? | | ?????????????????????? ???####""" """##" #### | +----------------------------------------------------+ Best States ------------- Heat Dissipation 25 Energy Generation 15 Energy Capacity 250 Matter Stores 300 Matter Capacity 300 Sight Range 16 Terrain Scan Range 16 Terrain Scan Density 10 Evasion (%) 55 Item Schematics ----------------- None Robot Schematics ------------------ None Fabricated ------------ Nothing Alien Tech Used ----------------- None Achievements -------------- None Challenges ------------ None Game ------ Seed EncryptedEtherialPurifier Manual? 0 Play Time 00:16:48 Cumulative 6.3 hours Start 2024.04.07 @ 21:42:13 End 2024.04.07 @ 21:54:46 Sessions 1 Manual Loads 0 Difficulty Rogue Special Mode None Game No. 13 Rogue 13 Adventurer 0 Explorer 0 Win Type - Total 0 Types 0/0/0/0/0/0/0/0/0 Lore% 12 Gallery% 12 Achievement% 14 Wizard Run 0 Options --------- Layout 1 ASCII 0 Keyboard 0 Movement Numpad Keybinds 0 Fullscreen 2 Font 32/SmallcapsGlow Map View 50x35 Zoom Use 0% Tactical HUD 0 Map Filters NONE Filters NONE Steam 0 RUN: 2b0e48f1-7ce7-45cf-92fc-80af57428d56